[Event "DVM U12w 2024"]
[Site "Bad Homburg"]
[Date "2024.12.27"]
[Round "1"]
[White "Glotz, Katharina"]
[Black "Reuber, Ella"]
[Result "1-0"]
[ECO "B76"]
[WhiteElo "1656"]
[BlackElo "1188"]
[Annotator "NA"]
[PlyCount "39"]
[EventDate "2024.12.23"]
[EventType "team-tourn"]
[EventRounds "7"]
[EventCountry "GER"]
[SourceTitle "playchess.com"]
[Source "ChessBase"]
[SourceQuality "1"]
[TimeControl "40/5400+30:1800+30"]

1. e4 {[%emt 0:00:03]} c5 {[%emt 0:00:04]} 2. Nf3 {[%emt 0:00:13]} d6 {[%emt 0:00:08]} 3. d4 {[%emt 0:01:09]} cxd4 {[%emt 0:00:09]} 4. Nxd4 {[%emt 0:00:11]} Nf6 {[%emt 0:00:12]} 5. Nc3 {[%emt 0:00:28]} g6 {[%emt 0:00:20]} 6. Be3 {[%emt 0:01:02]} Bg7 {[%emt 0:00:37]} 7. f3 {[%emt 0:01:40]} Nc6 {[%emt 0:01:26]} 8. Qd2 {[%emt 0:02:05]} O-O {[%emt 0:01:27]} 9. O-O-O {[%emt 0:01:06]} Bd7 {[%emt 0:01:18]} 10. g4 {[%emt 0:01:21]} a6 {[%emt 0:02:38]} 11. h4 {[%emt 0:01:34]} h5 {[%emt 0:01:05]} 12. Be2 {[%emt 0:06:50]} b5 {[%emt 0:01:29]} 13. a3 {[%emt 0:01:38]} hxg4 {[%emt 0:01:56]} 14. h5 {[%emt 0:00:56]} gxf3 {[%emt 0:04:20]} 15. Bxf3 {[%emt 0:00:39]} Ne5 {[%emt 0:04:07]} 16. h6 {[%emt 0:02:54]} Bh8 {[%emt 0:02:10]} 17. h7+ {[%emt 0:00:38]} Nxh7 {[%emt 0:02:41]} 18. Qh2 {[%emt 0:00:12]} Kg7 {[%emt 0:02:10]} 19. Qh6+ {[%emt 0:01:18]} Kf6 {[%emt 0:00:00]} 20. Nd5# {[%emt 0:00:45]} 1-0

[Event "DVM U12w 2024"]
[Site "Bad Homburg"]
[Date "2024.12.27"]
[Round "1"]
[White "Busch, Lara Sophie"]
[Black "Feldhaus, Lena"]
[Result "1-0"]
[ECO "C54"]
[WhiteElo "1625"]
[BlackElo "1539"]
[Annotator "NA RC"]
[PlyCount "48"]
[EventDate "2024.12.23"]
[EventType "team-tourn"]
[EventRounds "7"]
[EventCountry "GER"]
[SourceTitle "playchess.com"]
[Source "ChessBase"]
[SourceQuality "1"]
[TimeControl "40/5400+30:1800+30"]

1. e4 {[%emt 0:00:01]} e5 {[%emt 0:00:09]} 2. Nf3 {[%emt 0:00:08]} Nc6 {[%emt 0:00:11]} 3. Bc4 {[%emt 0:00:16]} Bc5 {[%emt 0:00:15]} 4. d3 {[%emt 0:00:25]} Nf6 {[%emt 0:00:21]} 5. c3 {[%emt 0:00:29]} O-O {[%emt 0:00:38]} 6. O-O {[%emt 0:00:21]} d6 {[%emt 0:00:25]} 7. Nbd2 {[%emt 0:02:18]} a6 {[%emt 0:01:06]} 8. Bb3 {[%emt 0:00:27]} Ba7 {[%emt 0:00:56]} 9. h3 {[%emt 0:06:18]} Ne7 {[%emt 0:01:35]} 10. Nc4 {[%emt 0:04:05]} Ng6 {[%emt 0:07:05]} 11. Be3 {[%emt 0:16:09]} Be6 {[%emt 0:11:09]} 12. Re1 {[%emt 0:12:32]} Nh5 {[%emt 0:09:35]} 13. Nfxe5 {[%emt 0:09:09]} dxe5 {[%emt 0:02:07]} 14. Qxh5 {[%emt 0:00:22]} Qxd3 {[%emt 0:03:28]} 15. Bxa7 {[%emt 0:05:22]} Rxa7 {[%emt 0:02:37]} 16. Rad1 {[%emt 0:00:56]} Bxc4 {[%emt 0:00:43]} 17. Rxd3 {[%emt 0:00:22]} Bxd3 {[%emt 0:00:14]} 18. Re3 {[%emt 0:02:54]} Nf4 {[%emt 0:04:28]} 19. Qxe5 {[%emt 0:01:20]} Ne2+ {[%emt 0:05:25]} 20. Kh2 {[%emt 0:01:45]} Nc1 {[%emt 0:01:21]} 21. Qxc7 {[%emt 0:12:38]} Rfa8 {[%emt 0:04:06]} 22. Qxf7+ {[%emt 0:00:59]} Kh8 {[%emt 0:00:16]} 23. Rf3 {[%emt 0:02:09]} h6 {[%emt 0:01:13]} 24. Qf4 {[%emt 0:01:43]} Nxb3 {[%emt 0:01:04]} 1-0

[Event "DVM U12w 2024"]
[Site "Bad Homburg"]
[Date "2024.12.27"]
[Round "1"]
[White "Hendler, Felicitas"]
[Black "Bayer, Klara"]
[Result "0-1"]
[WhiteElo "1610"]
[BlackElo "1618"]
[Annotator "NA"]
[PlyCount "22"]
[EventDate "2024.12.23"]
[EventType "team-tourn"]
[EventRounds "7"]
[EventCountry "GER"]
[SourceTitle "playchess.com"]
[Source "ChessBase"]
[SourceQuality "1"]
[TimeControl "40/5400+30:1800+30"]

1. e4 {[%emt 0:00:08]} c5 {[%emt 0:00:08]} 2. Nf3 {[%emt 0:00:36]} e6 {[%emt 0:00:30]} 3. d4 {[%emt 0:01:22]} cxd4 {[%emt 0:00:11]} 4. Nxd4 {[%emt 0:01:10]} Bc5 {[%emt 0:00:27]} 5. Be3 {[%emt 0:15:27]} Qb6 {[%emt 0:01:43]} 6. Nc3 {[%emt 0:08:37]} Nc6 {[%emt 0:27:13]} 7. Na4 {[%emt 0:10:06]} Qa5+ {[%emt 0:00:14]} 8. c3 {[%emt 0:00:18]} Be7 {[%emt 0:01:12]} 9. Nxc6 {[%emt 0:02:57]} dxc6 {[%emt 0:00:43]} 10. Qg4 {[%emt 0:06:17]} Qxa4 {[%emt 0:04:58]} 11. Bd4 {[%emt 0:03:13]} e5 {[%emt 0:02:36]} 0-1

[Event "DVM U12w 2024"]
[Site "Bad Homburg"]
[Date "2024.12.27"]
[Round "1"]
[White "Wolf, Helena"]
[Black "Klymenko, Mariia"]
[Result "0-1"]
[ECO "B16"]
[WhiteElo "1582"]
[BlackElo "1625"]
[Annotator "NA RC"]
[PlyCount "47"]
[EventDate "2024.12.23"]
[EventType "team-tourn"]
[EventRounds "7"]
[EventCountry "GER"]
[SourceTitle "playchess.com"]
[Source "ChessBase"]
[SourceQuality "1"]
[TimeControl "40/5400+30:1800+30"]

1. e4 {[%emt 0:00:03]} c6 {[%emt 0:00:05]} 2. Nf3 {[%emt 0:00:07]} d5 {[%emt 0:00:07]} 3. Nc3 {[%emt 0:00:10]} dxe4 {[%emt 0:00:10]} 4. Nxe4 {[%emt 0:00:09]} Nf6 {[%emt 0:00:06]} 5. Nxf6+ {[%emt 0:00:09]} gxf6 {[%emt 0:00:05]} 6. d4 {[%emt 0:01:14]} Bf5 {[%emt 0:00:41]} 7. c3 {[%emt 0:09:11]} e6 {[%emt 0:01:23]} 8. Bf4 {[%emt 0:05:10]} Bd6 {[%emt 0:01:57]} 9. Bxd6 {[%emt 0:02:13]} Qxd6 {[%emt 0:00:15]} 10. Nh4 {[%emt 0:10:44]} Bg6 {[%emt 0:01:19]} 11. Nxg6 {[%emt 0:08:38]} hxg6 {[%emt 0:00:59]} 12. h3 {[%emt 0:00:26]} Nd7 {[%emt 0:01:45]} 13. Be2 {[%emt 0:16:40]} O-O-O {[%emt 0:02:03]} 14. Qd2 {[%emt 0:04:56]} Rdg8 {[%emt 0:17:11]} 15. O-O-O {[%emt 0:04:30]} Qd5 {[%emt 0:03:52]} 16. Bf3 {[%emt 0:17:45]} Qxa2 {[%emt 0:01:51]} 17. Kc2 {[%emt 0:01:37]} Qa4+ {[%emt 0:01:36]} 18. Kc1 {[%emt 0:01:43]} Qa5 {[%emt 0:02:05]} 19. Kc2 {[%emt 0:04:02]} Qf5+ {[%emt 0:01:46]} 20. Kc1 {[%emt 0:02:55]} Qg5 {[%emt 0:02:58]} 21. Qxg5 {[%emt 0:01:00]} fxg5 {[%emt 0:00:08]} 22. Kc2 {[%emt 0:02:04]} Nf6 {[%emt 0:02:03]} 23. Ra1 {[%emt 0:01:04]} Kb8 {[%emt 0:02:29]} 24. Ra5 {[%emt 0:00:19]} 0-1

[Event "DVM U12w 2024"]
[Site "Bad Homburg"]
[Date "2024.12.27"]
[Round "1"]
[White "Frenzel, Qorianka"]
[Black "Andreeva, Katharina"]
[Result "1-0"]
[ECO "B73"]
[WhiteElo "1568"]
[BlackElo "1164"]
[Annotator "NA RC"]
[PlyCount "67"]
[EventDate "2024.12.23"]
[EventType "team-tourn"]
[EventRounds "7"]
[EventCountry "GER"]
[SourceTitle "playchess.com"]
[Source "ChessBase"]
[SourceQuality "1"]
[TimeControl "40/5400+30:1800+30"]

1. e4 {[%emt 0:00:05]} c5 {[%emt 0:00:03]} 2. Nf3 {[%emt 0:00:05]} d6 {[%emt 0:00:11]} 3. d4 {[%emt 0:00:05]} cxd4 {[%emt 0:00:13]} 4. Nxd4 {[%emt 0:00:15]} Nf6 {[%emt 0:00:10]} 5. Nc3 {[%emt 0:00:23]} g6 {[%emt 0:00:25]} 6. Be3 {[%emt 0:02:22]} Bg7 {[%emt 0:00:18]} 7. h3 {[%emt 0:01:12]} O-O {[%emt 0:00:42]} 8. Be2 {[%emt 0:01:29]} a6 {[%emt 0:00:51]} 9. O-O {[%emt 0:01:01]} Bd7 {[%emt 0:02:05]} 10. Qd2 {[%emt 0:02:01]} Nc6 {[%emt 0:01:07]} 11. Rad1 {[%emt 0:02:25]} Rc8 {[%emt 0:03:56]} 12. Nxc6 {[%emt 0:07:19]} Bxc6 {[%emt 0:02:46]} 13. Bf3 {[%emt 0:06:08]} b5 {[%emt 0:10:33]} 14. Nd5 {[%emt 0:02:52]} Nxd5 {[%emt 0:03:56]} 15. exd5 {[%emt 0:00:19]} Bb7 {[%emt 0:01:26]} 16. c3 {[%emt 0:01:26]} a5 {[%emt 0:04:10]} 17. Bh6 {[%emt 0:02:04]} Rc4 {[%emt 0:06:00]} 18. Bxg7 {[%emt 0:02:07]} Kxg7 {[%emt 0:00:49]} 19. Rfe1 {[%emt 0:01:41]} Re8 {[%emt 0:02:27]} 20. Qe3 {[%emt 0:03:57]} Qc7 {[%emt 0:02:46]} 21. Rd4 {[%emt 0:04:21]} Rxd4 {[%emt 0:02:12]} 22. Qxd4+ {[%emt 0:00:17]} Kg8 {[%emt 0:02:12]} 23. a4 {[%emt 0:05:54]} Qc4 {[%emt 0:03:29]} 24. Qb6 {[%emt 0:06:18]} Bxd5 {[%emt 0:04:43]} 25. Bxd5 {[%emt 0:00:11]} Qxd5 {[%emt 0:00:28]} 26. Qxb5 {[%emt 0:04:46]} Qxb5 {[%emt 0:02:12]} 27. axb5 {[%emt 0:00:04]} Rb8 {[%emt 0:01:44]} 28. c4 {[%emt 0:00:27]} Kf8 {[%emt 0:03:34]} 29. Ra1 {[%emt 0:00:15]} Ra8 {[%emt 0:00:49]} 30. b4 {[%emt 0:01:39]} a4 {[%emt 0:00:50]} 31. b6 {[%emt 0:00:54]} Rb8 {[%emt 0:02:18]} 32. c5 {[%emt 0:00:47]} dxc5 {[%emt 0:03:04]} 33. bxc5 {[%emt 0:00:19]} Ke8 {[%emt 0:02:12]} 34. Rxa4 {[%emt 0:01:23]} 1-0

[Event "DVM U12w 2024"]
[Site "Bad Homburg"]
[Date "2024.12.27"]
[Round "1"]
[White "Mersmann, Jasmin"]
[Black "Noennig, Lotte"]
[Result "1/2-1/2"]
[ECO "C49"]
[WhiteElo "1527"]
[BlackElo "1635"]
[Annotator "NA RC"]
[PlyCount "49"]
[EventDate "2024.12.23"]
[EventType "team-tourn"]
[EventRounds "7"]
[EventCountry "GER"]
[SourceTitle "playchess.com"]
[Source "ChessBase"]
[SourceQuality "1"]
[TimeControl "40/5400+30:1800+30"]

1. e4 {[%emt 0:00:02]} e5 {[%emt 0:00:12]} 2. Nf3 {[%emt 0:00:05]} Nc6 {[%emt 0:00:10]} 3. Nc3 {[%emt 0:00:24]} Nf6 {[%emt 0:00:27]} 4. Bb5 {[%emt 0:00:46]} Bb4 {[%emt 0:00:29]} 5. d3 {[%emt 0:00:16]} d6 {[%emt 0:01:44]} 6. Bg5 {[%emt 0:00:31]} O-O {[%emt 0:11:15]} 7. O-O {[%emt 0:00:20]} Ne7 {[%emt 0:01:38]} 8. a3 {[%emt 0:01:19]} Ba5 {[%emt 0:01:43]} 9. b4 {[%emt 0:00:36]} Bb6 {[%emt 0:01:33]} 10. Na4 {[%emt 0:00:36]} c6 {[%emt 0:02:38]} 11. Nxb6 {[%emt 0:02:39]} axb6 {[%emt 0:00:44]} 12. Bc4 {[%emt 0:00:37]} Ng6 {[%emt 0:01:44]} 13. Bb3 {[%emt 0:02:05]} h6 {[%emt 0:00:58]} 14. Be3 {[%emt 0:01:12]} Bg4 {[%emt 0:02:34]} 15. h3 {[%emt 0:01:09]} Be6 {[%emt 0:02:29]} 16. Nd2 {[%emt 0:00:43]} d5 {[%emt 0:04:16]} 17. exd5 {[%emt 0:02:52]} cxd5 {[%emt 0:01:27]} 18. d4 {[%emt 0:09:13]} Rc8 {[%emt 0:07:39]} 19. dxe5 {[%emt 0:04:39]} Nxe5 {[%emt 0:00:49]} 20. f4 {[%emt 0:06:25]} Nc6 {[%emt 0:05:12]} 21. Nf3 {[%emt 0:06:27]} Re8 {[%emt 0:07:52]} 22. Nd4 {[%emt 0:05:13]} Bxh3 {[%emt 0:08:51]} 23. Qd3 {[%emt 0:10:10]} Bd7 {[%emt 0:04:05]} 24. Rfe1 {[%emt 0:02:16]} Nxd4 {[%emt 0:04:47]} 25. Qxd4 {[%emt 0:03:27]} 1/2-1/2

[Event "DVM U12w 2024"]
[Site "Bad Homburg"]
[Date "2024.12.27"]
[Round "1"]
[White "Suryaprakash, Smrithi"]
[Black "Bacakova, Klara"]
[Result "1-0"]
[ECO "B43"]
[WhiteElo "1527"]
[BlackElo "1539"]
[Annotator "NA RC"]
[PlyCount "64"]
[EventDate "2024.12.23"]
[EventType "team-tourn"]
[EventRounds "7"]
[EventCountry "GER"]
[SourceTitle "playchess.com"]
[Source "ChessBase"]
[SourceQuality "1"]
[TimeControl "40/5400+30:1800+30"]

1. e4 {[%emt 0:00:11]} c5 {[%emt 0:00:06]} 2. Nf3 {[%emt 0:00:07]} e6 {[%emt 0:00:08]} 3. d4 {[%emt 0:00:44]} cxd4 {[%emt 0:00:07]} 4. Nxd4 {[%emt 0:00:06]} a6 {[%emt 0:00:27]} 5. Nc3 {[%emt 0:00:18]} Qc7 {[%emt 0:00:13]} 6. Be3 {[%emt 0:01:02]} Nf6 {[%emt 0:00:30]} 7. Qd2 {[%emt 0:00:53]} Bb4 {[%emt 0:01:26]} 8. Bd3 {[%emt 0:02:10]} Bxc3 {[%emt 0:00:40]} 9. Qxc3 {[%emt 0:00:42]} Qxc3+ {[%emt 0:00:09]} 10. bxc3 {[%emt 0:00:04]} d6 {[%emt 0:00:54]} 11. O-O {[%emt 0:11:06]} O-O {[%emt 0:00:27]} 12. h3 {[%emt 0:04:05]} Nbd7 {[%emt 0:02:30]} 13. f4 {[%emt 0:03:39]} Re8 {[%emt 0:04:36]} 14. Rfe1 {[%emt 0:07:00]} b5 {[%emt 0:03:30]} 15. Nb3 {[%emt 0:04:07]} Bb7 {[%emt 0:02:32]} 16. Bf2 {[%emt 0:04:46]} Rac8 {[%emt 0:02:11]} 17. Na5 {[%emt 0:05:28]} Ba8 {[%emt 0:01:09]} 18. c4 {[%emt 0:04:10]} Nc5 {[%emt 0:12:03]} 19. cxb5 {[%emt 0:04:15]} Nfxe4 {[%emt 0:06:34]} 20. bxa6 {[%emt 0:06:47]} Nxf2 {[%emt 0:01:09]} 21. Kxf2 {[%emt 0:00:33]} Nxd3+ {[%emt 0:00:10]} 22. cxd3 {[%emt 0:00:13]} Rc5 {[%emt 0:01:14]} 23. Nc4 {[%emt 0:01:32]} Rc6 {[%emt 0:00:59]} 24. a7 {[%emt 0:03:26]} d5 {[%emt 0:02:16]} 25. Na3 {[%emt 0:02:46]} Rc7 {[%emt 0:09:20]} 26. Nb5 {[%emt 0:01:24]} Rb7 {[%emt 0:00:09]} 27. Nd6 {[%emt 0:02:52]} Rb2+ {[%emt 0:00:14]} 28. Re2 {[%emt 0:00:05]} Rxe2+ {[%emt 0:00:05]} 29. Kxe2 {[%emt 0:00:03]} Kf8 {[%emt 0:07:11]} 30. Rb1 {[%emt 0:00:57]} Rd8 {[%emt 0:01:00]} 31. Rb8 {[%emt 0:00:28]} Ke7 {[%emt 0:00:43]} 32. Nxf7 {[%emt 0:00:57]} Re8 {[%emt 0:02:15]} 1-0

[Event "DVM U12w 2024"]
[Site "Bad Homburg"]
[Date "2024.12.27"]
[Round "1"]
[White "Frydel, Helena"]
[Black "Fruth, Julia"]
[Result "1-0"]
[ECO "B92"]
[WhiteElo "1514"]
[BlackElo "1614"]
[Annotator "NA RC"]
[PlyCount "67"]
[EventDate "2024.12.23"]
[EventType "team-tourn"]
[EventRounds "7"]
[EventCountry "GER"]
[SourceTitle "playchess.com"]
[Source "ChessBase"]
[SourceQuality "1"]
[TimeControl "40/5400+30:1800+30"]

1. e4 {[%emt 0:00:03]} c5 {[%emt 0:00:10]} 2. Nf3 {[%emt 0:00:05]} d6 {[%emt 0:00:17]} 3. d4 {[%emt 0:00:06]} cxd4 {[%emt 0:00:10]} 4. Nxd4 {[%emt 0:00:09]} Nf6 {[%emt 0:00:11]} 5. Nc3 {[%emt 0:00:11]} a6 {[%emt 0:00:08]} 6. Be2 {[%emt 0:00:01]} e5 {[%emt 0:00:48]} 7. Nb3 {[%emt 0:00:05]} Be6 {[%emt 0:00:32]} 8. Bg5 {[%emt 0:00:04]} Nbd7 {[%emt 0:02:21]} 9. Qd3 {[%emt 0:01:14]} Be7 {[%emt 0:01:31]} 10. O-O-O {[%emt 0:00:44]} O-O {[%emt 0:01:14]} 11. f4 {[%emt 0:02:11]} exf4 {[%emt 0:02:40]} 12. Bxf4 {[%emt 0:00:20]} Ne5 {[%emt 0:00:18]} 13. Qd2 {[%emt 0:03:05]} Rc8 {[%emt 0:07:20]} 14. Nd4 {[%emt 0:01:59]} Nfd7 {[%emt 0:13:02]} 15. Nf5 {[%emt 0:01:35]} Nc5 {[%emt 0:11:32]} 16. Nxe7+ {[%emt 0:01:40]} Qxe7 {[%emt 0:00:24]} 17. Qxd6 {[%emt 0:00:19]} Qxd6 {[%emt 0:01:45]} 18. Rxd6 {[%emt 0:00:06]} Ng6 {[%emt 0:01:26]} 19. Bg3 {[%emt 0:01:21]} Rfe8 {[%emt 0:05:04]} 20. Rhd1 {[%emt 0:03:04]} b5 {[%emt 0:08:06]} 21. b4 {[%emt 0:00:59]} Nb7 {[%emt 0:03:27]} 22. R6d3 {[%emt 0:02:59]} Bc4 {[%emt 0:01:02]} 23. Rd7 {[%emt 0:03:22]} Bxe2 {[%emt 0:01:57]} 24. Nxe2 {[%emt 0:00:12]} Rxe4 {[%emt 0:00:58]} 25. R1d2 {[%emt 0:04:01]} Re7 {[%emt 0:11:44]} 26. Rxe7 {[%emt 0:01:14]} Nxe7 {[%emt 0:05:45]} 27. Rd7 {[%emt 0:00:14]} Nc6 {[%emt 0:00:43]} 28. Rxb7 {[%emt 0:00:31]} Nxb4 {[%emt 0:00:17]} 29. Rb8 {[%emt 0:00:14]} Rxb8 {[%emt 0:01:12]} 30. Bxb8 {[%emt 0:00:05]} Nxa2+ {[%emt 0:00:12]} 31. Kb2 {[%emt 0:00:07]} Nb4 {[%emt 0:00:27]} 32. Nd4 {[%emt 0:01:03]} Kf8 {[%emt 0:02:20]} 33. Bd6+ {[%emt 0:00:11]} Ke8 {[%emt 0:00:12]} 34. Bxb4 {[%emt 0:00:16]} 1-0

[Event "DVM U12w 2024"]
[Site "Bad Homburg"]
[Date "2024.12.27"]
[Round "1"]
[White "Rose, Malina Rita"]
[Black "Sobczak, Zuzanna"]
[Result "0-1"]
[ECO "B34"]
[WhiteElo "1503"]
[BlackElo "1598"]
[Annotator "NA"]
[PlyCount "52"]
[EventDate "2024.12.23"]
[EventType "team-tourn"]
[EventRounds "7"]
[EventCountry "GER"]
[SourceTitle "playchess.com"]
[Source "ChessBase"]
[SourceQuality "1"]
[TimeControl "40/5400+30:1800+30"]

1. e4 {[%emt 0:00:02]} c5 {[%emt 0:00:07]} 2. Bc4 {[%emt 0:00:11]} Nc6 {[%emt 0:00:09]} 3. Nf3 {[%emt 0:00:19]} g6 {[%emt 0:00:20]} 4. d4 {[%emt 0:00:36]} cxd4 {[%emt 0:00:12]} 5. Nxd4 {[%emt 0:00:09]} Bg7 {[%emt 0:00:09]} 6. Nxc6 {[%emt 0:00:51]} bxc6 {[%emt 0:00:10]} 7. Qf3 {[%emt 0:01:06]} e6 {[%emt 0:00:52]} 8. Nc3 {[%emt 0:00:20]} d5 {[%emt 0:02:18]} 9. exd5 {[%emt 0:02:02]} cxd5 {[%emt 0:00:23]} 10. Bb5+ {[%emt 0:00:20]} Bd7 {[%emt 0:00:10]} 11. Bxd7+ {[%emt 0:01:17]} Qxd7 {[%emt 0:00:24]} 12. O-O {[%emt 0:01:09]} Ne7 {[%emt 0:01:00]} 13. Rb1 {[%emt 0:01:49]} O-O {[%emt 0:00:29]} 14. Re1 {[%emt 0:02:24]} Nf5 {[%emt 0:00:52]} 15. Be3 {[%emt 0:03:20]} d4 {[%emt 0:00:41]} 16. Red1 {[%emt 0:01:01]} Qe7 {[%emt 0:00:43]} 17. Bf4 {[%emt 0:03:50]} dxc3 {[%emt 0:01:55]} 18. bxc3 {[%emt 0:02:35]} Rad8 {[%emt 0:02:32]} 19. Rxd8 {[%emt 0:01:42]} Rxd8 {[%emt 0:00:09]} 20. h3 {[%emt 0:06:39]} Qc5 {[%emt 0:04:35]} 21. Rb3 {[%emt 0:00:00]} Be5 {[%emt 0:04:31]} 22. Bxe5 {[%emt 0:00:26]} Qxe5 {[%emt 0:00:11]} 23. Rb7 {[%emt 0:00:41]} Qe1+ {[%emt 0:01:25]} 24. Kh2 {[%emt 0:00:22]} Rd1 {[%emt 0:00:14]} 25. Qxd1 {[%emt 0:02:42]} Qxd1 {[%emt 0:00:10]} 26. Rxa7 {[%emt 0:00:35]} Qxc2 {[%emt 0:00:22]} 0-1

[Event "DVM U12w 2024"]
[Site "Bad Homburg"]
[Date "2024.12.27"]
[Round "1"]
[White "Lange, Lene Marie"]
[Black "Werner, Amelie"]
[Result "1/2-1/2"]
[ECO "D02"]
[WhiteElo "1501"]
[BlackElo "1525"]
[Annotator "NA RC"]
[PlyCount "42"]
[EventDate "2024.12.23"]
[EventType "team-tourn"]
[EventRounds "7"]
[EventCountry "GER"]
[SourceTitle "playchess.com"]
[Source "ChessBase"]
[SourceQuality "1"]
[TimeControl "40/5400+30:1800+30"]

1. d4 {[%emt 0:00:03]} d5 {[%emt 0:00:06]} 2. Bf4 {[%emt 0:00:08]} c5 {[%emt 0:00:05]} 3. e3 {[%emt 0:00:09]} Nf6 {[%emt 0:00:07]} 4. Nf3 {[%emt 0:00:21]} Nc6 {[%emt 0:00:09]} 5. c3 {[%emt 0:00:09]} Bf5 {[%emt 0:00:07]} 6. Nbd2 {[%emt 0:00:21]} cxd4 {[%emt 0:00:27]} 7. cxd4 {[%emt 0:00:54]} e6 {[%emt 0:00:53]} 8. Bb5 {[%emt 0:00:28]} Rc8 {[%emt 0:02:15]} 9. Rc1 {[%emt 0:01:29]} Bd6 {[%emt 0:01:00]} 10. Ne5 {[%emt 0:02:22]} O-O {[%emt 0:02:14]} 11. O-O {[%emt 0:08:45]} Nb4 {[%emt 0:05:47]} 12. a3 {[%emt 0:03:30]} a6 {[%emt 0:03:16]} 13. Be2 {[%emt 0:06:48]} Nc6 {[%emt 0:00:17]} 14. Ndf3 {[%emt 0:01:01]} Ne4 {[%emt 0:08:19]} 15. Qb3 {[%emt 0:11:02]} Na5 {[%emt 0:05:28]} 16. Qa2 {[%emt 0:08:42]} b5 {[%emt 0:03:55]} 17. b4 {[%emt 0:05:20]} Nc4 {[%emt 0:09:05]} 18. Rfd1 {[%emt 0:18:37]} a5 {[%emt 0:07:22]} 19. bxa5 {[%emt 0:05:37]} Qxa5 {[%emt 0:00:14]} 20. Nxc4 {[%emt 0:00:15]} bxc4 {[%emt 0:00:55]} 21. Bxd6 {[%emt 0:00:59]} Nxd6 {[%emt 0:00:11]} 1/2-1/2

[Event "DVM U12w 2024"]
[Site "Bad Homburg"]
[Date "2024.12.27"]
[Round "1"]
[White "Ruddat, Maila"]
[Black "Ising, Svea"]
[Result "0-1"]
[ECO "C54"]
[WhiteElo "1486"]
[BlackElo "1221"]
[Annotator "NA"]
[PlyCount "40"]
[EventDate "2024.12.23"]
[EventType "team-tourn"]
[EventRounds "7"]
[EventCountry "GER"]
[SourceTitle "playchess.com"]
[Source "ChessBase"]
[SourceQuality "1"]
[TimeControl "40/5400+30:1800+30"]

1. e4 {[%emt 0:00:16]} e5 {[%emt 0:00:08]} 2. Nf3 {[%emt 0:00:25]} Nc6 {[%emt 0:00:10]} 3. Bc4 {[%emt 0:00:32]} Bc5 {[%emt 0:00:23]} 4. c3 {[%emt 0:00:38]} Nf6 {[%emt 0:00:28]} 5. d3 {[%emt 0:00:30]} h6 {[%emt 0:01:10]} 6. Be3 {[%emt 0:02:14]} Bb6 {[%emt 0:01:27]} 7. Bb3 {[%emt 0:01:25]} d6 {[%emt 0:02:04]} 8. h3 {[%emt 0:01:20]} Be6 {[%emt 0:02:38]} 9. Nbd2 {[%emt 0:03:18]} d5 {[%emt 0:04:24]} 10. Bxb6 {[%emt 0:05:08]} axb6 {[%emt 0:01:14]} 11. Bc2 {[%emt 0:00:55]} d4 {[%emt 0:03:15]} 12. cxd4 {[%emt 0:01:02]} exd4 {[%emt 0:00:26]} 13. Bb3 {[%emt 0:00:50]} Nb4 {[%emt 0:04:16]} 14. a3 {[%emt 0:00:57]} Nxd3+ {[%emt 0:02:32]} 15. Kf1 {[%emt 0:01:32]} O-O {[%emt 0:03:29]} 16. Qc2 {[%emt 0:06:44]} Nf4 {[%emt 0:05:40]} 17. g3 {[%emt 0:01:43]} d3 {[%emt 0:04:23]} 18. Qd1 {[%emt 0:02:00]} Bxh3+ {[%emt 0:02:28]} 19. Kg1 {[%emt 0:01:14]} Ne2+ {[%emt 0:00:24]} 20. Kh2 {[%emt 0:00:31]} Ng4+ {[%emt 0:00:29]} 0-1

[Event "DVM U12w 2024"]
[Site "Bad Homburg"]
[Date "2024.12.27"]
[Round "1"]
[White "Albrecht, Sidney Jenna"]
[Black "Schindler, Amilia"]
[Result "1-0"]
[ECO "A29"]
[WhiteElo "1483"]
[BlackElo "790"]
[Annotator "NA"]
[PlyCount "75"]
[EventDate "2024.12.23"]
[EventType "team-tourn"]
[EventRounds "7"]
[EventCountry "GER"]
[SourceTitle "playchess.com"]
[Source "ChessBase"]
[SourceQuality "1"]
[TimeControl "40/5400+30:1800+30"]

1. c4 {[%emt 0:00:03]} e5 {[%emt 0:00:20]} 2. Nc3 {[%emt 0:00:14]} Nc6 {[%emt 0:00:27]} 3. g3 {[%emt 0:00:17]} Bc5 {[%emt 0:00:14]} 4. Nf3 {[%emt 0:00:24]} Nf6 {[%emt 0:00:16]} 5. Bg2 {[%emt 0:00:21]} O-O {[%emt 0:00:44]} 6. O-O {[%emt 0:00:14]} d6 {[%emt 0:00:36]} 7. d3 {[%emt 0:01:20]} Bg4 {[%emt 0:00:41]} 8. h3 {[%emt 0:03:33]} Be6 {[%emt 0:01:22]} 9. e3 {[%emt 0:03:22]} Nb4 {[%emt 0:00:51]} 10. a3 {[%emt 0:01:28]} Nc6 {[%emt 0:00:39]} 11. d4 {[%emt 0:00:54]} exd4 {[%emt 0:01:44]} 12. exd4 {[%emt 0:00:12]} Nxd4 {[%emt 0:00:36]} 13. Nxd4 {[%emt 0:00:20]} Bxc4 {[%emt 0:01:06]} 14. Re1 {[%emt 0:00:49]} Bb6 {[%emt 0:01:13]} 15. Bxb7 {[%emt 0:02:28]} Rb8 {[%emt 0:00:50]} 16. Nc6 {[%emt 0:01:29]} Qd7 {[%emt 0:01:04]} 17. Nxb8 {[%emt 0:00:22]} Rxb8 {[%emt 0:00:52]} 18. Bg2 {[%emt 0:00:38]} Qf5 {[%emt 0:00:25]} 19. Be3 {[%emt 0:03:08]} Bxe3 {[%emt 0:00:44]} 20. Rxe3 {[%emt 0:00:31]} Rxb2 {[%emt 0:00:51]} 21. Qe1 {[%emt 0:00:48]} h6 {[%emt 0:00:25]} 22. Re8+ {[%emt 0:02:45]} Nxe8 {[%emt 0:00:13]} 23. Qxe8+ {[%emt 0:00:10]} Kh7 {[%emt 0:00:10]} 24. Be4 {[%emt 0:00:09]} g6 {[%emt 0:05:26]} 25. Bxf5 {[%emt 0:00:11]} gxf5 {[%emt 0:00:16]} 26. Ne4 {[%emt 0:02:10]} Kg7 {[%emt 0:01:34]} 27. Nf6 {[%emt 0:01:38]} Re2 {[%emt 0:01:02]} 28. Qd8 {[%emt 0:00:47]} Re6 {[%emt 0:00:53]} 29. Nh5+ {[%emt 0:00:44]} Kh7 {[%emt 0:00:28]} 30. Qf8 {[%emt 0:00:57]} Rg6 {[%emt 0:00:20]} 31. Rc1 {[%emt 0:00:58]} Be2 {[%emt 0:00:14]} 32. Nf4 {[%emt 0:00:17]} Rg8 {[%emt 0:00:36]} 33. Qxf7+ {[%emt 0:00:32]} Rg7 {[%emt 0:00:24]} 34. Qxf5+ {[%emt 0:00:16]} Kh8 {[%emt 0:00:24]} 35. Nxe2 {[%emt 0:01:15]} Re7 {[%emt 0:01:31]} 36. Qf6+ {[%emt 0:00:43]} Rg7 {[%emt 0:00:12]} 37. Rxc7 {[%emt 0:00:11]} Kh7 {[%emt 0:01:04]} 38. Qxg7# {[%emt 0:00:08]} 1-0